bitfinex/quotes_ETHUSD_20250213
["timestamp","ask_amount","ask_price","bid_price","bid_amount"]
[1739430671681,0.62889551,2684.4,2684.2,3.72549]
[1739430671682,0.015,2684.3,2684.2,3.72549]
[1739430671850,0.0075,2684.3,2684.2,3.72549]
[1739430672054,0.0075,2684.5,2684.3,3.72522]
[1739430672257,0.06389972,2684.4,2684.3,6.72522]
[1739430672952,0.06389972,2684.4,2684.3,3.0]
[1739430673690,0.10111472,2684.4,2684.3,3.0]
[1739430674490,0.11611472,2684.4,2684.3,3.0]
[1739430674849,0.565,2684.1,2683.8,3.82020551]
[1739430675049,0.5575,2683.9,2683.8,0.2488]
[1739430675381,0.62140599,2683.9,2683.8,3.97486]
[1739430677051,0.62890599,2683.9,2683.8,0.2488]
[1739430678166,0.62890599,2683.9,2683.8,3.97486]
[1739430678853,0.62890599,2683.9,2683.8,6.97486]
[1739430679332,0.62890599,2683.9,2683.8,3.2488]
[1739430679639,0.62890599,2683.9,2683.8,10.54626551]
[1739430680786,0.015,2683.9,2683.8,10.54626551]
[1739430681337,0.07875835,2683.9,2683.8,10.54626551]
[1739430681488,0.015,2683.9,2683.8,10.54626551]
[1739430681680,0.07875835,2683.9,2683.8,10.54626551]
[1739430682688,0.07875835,2683.9,2683.8,6.82020551]
[1739430683831,0.07875835,2683.9,2683.8,10.54626551]
[1739430684447,0.07875835,2683.9,2683.8,6.82020551]
[1739430684587,0.07875835,2683.9,2683.8,3.2488]
[1739430684791,1.363515,2683.9,2683.8,3.2488]
[1739430685035,1.363515,2683.9,2683.8,0.2488]
[1739430685036,1.5176515,2683.9,2683.8,0.2488]
[1739430685190,5.30499848,2683.9,2683.8,0.2488]
[1739430685501,1.61629348,2683.9,2683.8,0.2488]
[1739430686016,5.34221348,2683.9,2683.8,0.2488]
[1739430686201,1.61629348,2683.9,2683.8,0.2488]
[1739430686529,5.34221348,2683.9,2683.8,0.2488]
[1739430690167,1.61629348,2683.9,2683.8,0.2488]
[1739430690312,5.34221348,2683.9,2683.8,0.2488]
[1739430692433,10.63221348,2683.9,2683.8,0.2488]
[1739430692642,10.59499848,2683.9,2683.8,0.2488]
[1739430693438,6.86907848,2683.9,2683.8,0.2488]
[1739430693607,10.63221348,2683.9,2683.8,0.2488]
[1739430693808,6.86907848,2683.9,2683.8,0.2488]
[1739430694043,6.90629348,2683.9,2683.8,0.2488]
[1739430694398,6.86907848,2683.9,2683.8,0.2488]
[1739430695035,10.59499848,2683.9,2683.8,0.2488]
[1739430698399,0.77,2683.1,2682.7,3.0]
[1739430698600,0.0075,2682.8,2682.7,3.0]
[1739430698942,0.10819525,2682.8,2682.7,3.0]
[1739430699144,0.65819525,2682.8,2682.7,3.0]
[1739430699440,0.015,2682.6,2682.5,0.815]
[1739430699640,0.10799336,2682.6,2682.5,0.815]
[1739430700147,0.10799336,2682.6,2682.5,7.54286]
[1739430700518,0.015,2682.9,2682.7,3.72756]
[1739430700714,0.015,2682.9,2682.8,3.72744]
[1739430700915,0.015,2682.9,2682.7,3.72756]
[1739430701135,0.565,2682.8,2682.7,3.72756]
[1739430701709,0.565,2682.8,2682.6,3.57140551]
[1739430701905,0.565,2682.8,2682.6,7.29908551]
[1739430702317,12.74361,2683.3,2682.6,7.29908551]
[1739430702318,5.29,2683.3,2682.6,3.57140551]
[1739430702515,0.289,2683.2,2683.1,3.72702]
[1739430702846,0.854,2683.2,2683.1,3.72702]
[1739430703046,0.304,2683.2,2683.1,3.72702]
[1739430703746,0.565,2683.1,2683.0,4.55665]
[1739430704542,0.015,2683.1,2683.0,4.55665]
[1739430704905,0.565,2683.1,2683.0,4.55665]
[1739430706451,0.015,2683.1,2683.0,4.55667]
[1739430706762,0.0685901,2683.1,2683.0,7.55667]
[1739430706938,0.0535901,2683.1,2683.0,7.55667]
[1739430707121,0.8173,2684.0,2683.0,7.55667]
[1739430707122,0.8173,2684.0,2683.5,4.49843]
[1739430707325,0.0520985,2683.9,2683.8,3.72595]
[1739430707530,0.0670985,2683.9,2683.8,3.72595]
[1739430708124,0.015,2683.8,2683.7,7.29759551]
[1739430708331,0.06524383,2683.8,2683.7,10.29759551]
[1739430709030,0.61524383,2683.8,2683.7,10.29759551]
[1739430709809,0.61524383,2683.8,2683.7,6.57140551]
[1739430710961,0.61524383,2683.8,2683.7,10.29759551]
[1739430711159,0.61524383,2683.8,2683.7,6.57140551]
[1739430712035,0.61524383,2683.8,2683.7,10.29759551]
[1739430713064,0.61524383,2683.8,2683.7,3.0]
[1739430713917,0.61524383,2683.8,2683.4,3.57140551]
[1739430713918,0.015,2683.6,2683.4,3.57140551]
[1739430714261,0.59708204,2683.5,2683.4,6.57140551]
[1739430714556,0.015,2683.3,2683.1,3.57140551]
[1739430714763,0.55,2683.2,2683.1,3.57140551]
[1739430714963,0.59700607,2683.2,2683.1,3.57140551]
[1739430715256,0.59700607,2683.2,2683.1,7.29843551]
[1739430715646,0.565,2683.8,2683.3,3.72672]
[1739430715960,0.565,2683.6,2683.2,3.72677]
[1739430716416,0.565,2683.4,2683.2,3.72677]
[1739430716830,0.06175052,2683.3,2683.2,3.72677]
[1739430717579,0.55,2683.2,2683.1,10.29843551]
[1739430718071,0.59665756,2683.2,2683.1,10.29843551]
[1739430718219,0.55,2683.2,2683.1,10.29843551]
[1739430718418,0.015,2683.3,2683.2,3.72689]
[1739430719173,0.565,2683.2,2683.1,6.57140551]
[1739430719516,0.06168549,2683.2,2683.1,6.57140551]
[1739430719758,0.06168549,2683.2,2683.1,7.29843551]
[1739430720048,0.06168549,2683.2,2683.1,7.05043551]
[1739430720566,0.06168549,2683.2,2683.1,3.32340551]
[1739430721972,0.06168549,2683.2,2683.1,7.05043551]
[1739430722464,0.015,2683.2,2683.1,7.05043551]
[1739430723282,6.1211,2683.9,2683.1,6.32340551]
[1739430723419,6.1211,2683.9,2683.7,3.57140551]
[1739430723420,0.33579142,2683.8,2683.7,3.57140551]
[1739430723837,0.61179142,2683.8,2683.7,3.57140551]
[1739430724136,0.06179142,2683.8,2683.7,11.07089551]
[1739430725649,0.06179142,2683.8,2683.7,3.57140551]
[1739430726860,0.06179142,2683.8,2683.7,7.29759551]
[1739430727027,0.06179142,2683.8,2683.7,3.57140551]
[1739430727231,0.06179142,2683.8,2683.7,7.29759551]
[1739430727877,0.06179142,2683.8,2683.7,3.57140551]
[1739430728038,0.06179142,2683.8,2683.7,7.29759551]
[1739430730429,0.06179142,2683.8,2683.7,10.29759551]
[1739430730557,0.06179142,2683.8,2683.7,6.57140551]
[1739430730895,0.06179142,2683.8,2683.7,10.29759551]
[1739430732263,0.04679142,2683.8,2683.7,10.29759551]
[1739430732466,0.04679142,2683.8,2683.7,11.08189551]
[1739430732669,5.579,2684.5,2684.3,3.72536]
[1739430733009,0.61066524,2684.4,2684.3,3.57140551]
[1739430733327,0.64788024,2684.4,2684.0,6.57140551]
[1739430733473,0.015,2684.2,2684.0,6.57140551]
[1739430733668,0.55,2684.1,2684.0,6.57140551]
[1739430733875,0.59557971,2684.1,2684.0,6.57140551]
[1739430734090,0.59557971,2684.1,2684.0,10.29718551]
[1739430735080,0.04557971,2684.1,2684.0,10.29718551]
[1739430735327,0.04557971,2684.1,2684.0,14.67639102]
[1739430735490,6.19,2684.8,2684.6,3.72484]
[1739430735691,6.755,2684.8,2684.7,7.29621551]
[1739430735870,0.854,2684.8,2684.7,7.29621551]
[1739430736282,1.60635016,2684.8,2684.7,3.57140551]
[1739430736486,1.84538518,2684.8,2684.7,3.57140551]
[1739430736688,1.88260018,2684.8,2684.7,3.57140551]
[1739430736887,1.84538518,2684.8,2684.7,3.57140551]
[1739430737602,1.84538518,2684.8,2684.4,3.72515]
[1739430737603,0.0075,2684.6,2684.4,3.57140551]
[1739430737898,0.5575,2684.7,2684.4,3.57140551]
[1739430737899,0.0075,2684.5,2684.4,3.57140551]
[1739430738288,0.565,2684.4,2684.1,6.57140551]
[1739430738494,0.565,2684.4,2683.7,0.8068]
[1739430738495,0.565,2684.2,2683.8,7.29734551]
[1739430738720,0.565,2684.2,2683.8,11.02330551]
[1739430738905,0.565,2684.2,2683.9,3.7258]
[1739430739093,0.565,2684.2,2684.0,3.72578]
[1739430739295,1.2072217,2684.2,2684.0,3.72578]
[1739430739478,1.2072217,2684.2,2684.1,3.72564]
[1739430739679,1.2072217,2684.2,2684.0,3.72575]
[1739430740091,1.2072217,2684.2,2684.1,7.29704551]
[1739430740543,1.2072217,2684.2,2684.1,3.57140551]
[1739430740746,1.2444367,2684.2,2684.1,3.57140551]
[1739430741637,1.2072217,2684.2,2684.1,3.57140551]
[1739430741823,0.015,2683.9,2683.8,3.57140551]
[1739430743418,1.1113335,2683.9,2683.8,3.57140551]
[1739430743617,1.0741185,2683.9,2683.8,3.57140551]
[1739430743827,0.565,2683.9,2683.8,3.57140551]
[1739430744032,0.565,2683.9,2683.8,7.29746551]
[1739430744555,0.565,2683.9,2683.8,3.57140551]
[1739430745230,0.565,2683.9,2683.8,7.29746551]
[1739430746039,0.565,2683.9,2683.8,3.57140551]
[1739430746409,0.602215,2683.9,2683.8,3.57140551]
[1739430746747,1.15038409,2683.9,2683.8,3.57140551]
[1739430746949,0.565,2683.9,2683.8,3.57140551]
[1739430748678,0.55,2683.8,2683.6,3.0]
[1739430748837,0.55,2683.8,2683.6,6.72626]
[1739430749044,0.565,2683.9,2683.6,3.0]
[1739430749342,0.55,2683.7,2683.6,3.0]
[1739430749545,0.59391194,2683.7,2683.6,3.0]
[1739430750080,0.59391194,2683.7,2683.6,6.72633]
[1739430750637,0.60891194,2683.7,2683.6,6.72633]
[1739430750822,0.565,2683.7,2683.6,6.72633]
[1739430751355,0.60891194,2683.7,2683.6,6.72633]
[1739430752475,0.565,2683.7,2683.6,6.72633]
[1739430754044,0.5575,2683.7,2683.6,6.72633]
[1739430755083,0.55,2683.7,2683.6,6.72633]
[1739430755780,0.55,2683.7,2683.6,7.52553]
[1739430756985,0.773,2684.3,2684.0,3.72565]
[1739430757147,0.037215,2684.2,2684.1,3.72564]
[1739430757349,0.565,2684.1,2684.0,7.29705551]
[1739430757753,0.565,2684.1,2684.0,3.57140551]
[1739430760159,0.015,2684.1,2684.0,7.29718551]
[1739430761161,0.015,2684.1,2684.0,11.11708551]
[1739430761361,0.289,2684.3,2684.2,3.7255]
[1739430761562,0.839,2684.3,2684.2,7.29690551]
[1739430761946,0.854,2684.3,2684.2,7.29690551]
[1739430762398,1.54110059,2684.3,2684.2,7.29690551]
[1739430762957,0.565,2684.3,2684.2,7.29690551]
[1739430763307,0.23903502,2684.8,2684.5,3.72508]
[1739430763308,1.05533502,2684.8,2684.5,3.72508]
[1739430763462,0.015,2684.6,2684.5,3.57140551]
[1739430763661,0.565,2684.6,2684.5,3.57140551]
[1739430763875,0.60946864,2684.6,2684.5,3.57140551]
[1739430764079,0.60946864,2684.6,2684.2,7.29683551]
[1739430764457,0.015,2684.3,2684.2,7.29683551]
[1739430764663,0.015,2683.9,2683.6,3.57140551]
[1739430764891,0.0075,2683.7,2683.6,3.57140551]
[1739430765093,0.0075,2683.7,2683.6,7.29773551]
[1739430765300,0.59422995,2683.7,2683.6,10.29773551]
[1739430765479,0.55,2683.7,2683.6,11.04843551]
[1739430766304,0.015,2684.1,2684.0,3.72578]
[1739430766463,0.015,2684.1,2684.0,7.29718551]
[1739430766667,0.60928848,2684.1,2684.0,7.29718551]
[1739430767065,0.60928848,2684.1,2684.0,3.57140551]
[1739430767382,1.36768848,2684.1,2684.0,3.57140551]
[1739430768086,1.3234,2684.1,2684.0,3.57140551]
[1739430768314,1.36717077,2684.1,2684.0,3.57140551]
[1739430769356,1.36717077,2684.1,2684.0,7.29718551]
[1739430770117,0.60877077,2684.1,2684.0,7.29718551]
[1739430771445,0.60877077,2684.1,2684.0,10.29718551]
[1739430771598,0.565,2684.1,2684.0,10.29718551]
[1739430771793,0.60882662,2684.1,2684.0,10.29718551]
[1739430772745,0.565,2684.1,2684.0,10.29718551]
[1739430773052,0.60723879,2684.1,2684.0,10.29718551]
[1739430773256,0.04973879,2684.1,2684.0,10.29718551]
[1739430773394,0.288,2684.6,2684.1,3.72564]
[1739430773594,0.288,2684.6,2684.4,3.57140551]
[1739430773904,0.015,2684.5,2684.4,7.29650551]
[1739430774105,0.015,2684.5,2684.4,8.05540551]
[1739430774321,0.015,2684.7,2684.6,3.72494]
[1739430774535,0.015,2684.7,2684.6,7.29634551]
[1739430774737,0.565,2684.7,2684.6,7.29634551]
[1739430774935,0.015,2684.7,2684.6,7.29634551]
[1739430775456,0.7906,2685.0,2684.8,3.72458]
[1739430775457,0.037215,2685.0,2684.8,3.72458]
[1739430775656,0.565,2684.9,2684.6,7.29622551]
[1739430775856,0.015,2684.9,2684.7,3.7248]
[1739430776019,0.565,2684.7,2684.6,7.29622551]
[1739430776359,0.565,2684.7,2684.6,3.57140551]
[1739430776649,0.565,2684.5,2684.3,3.57140551]
[1739430776851,0.602215,2684.4,2684.3,3.57140551]
[1739430777426,0.565,2684.4,2684.3,3.57140551]
[1739430779223,1.36145078,2684.4,2684.3,3.57140551]
[1739430780622,1.36145078,2684.4,2684.3,7.29676551]
[1739430781361,1.57665586,2684.4,2684.3,3.57140551]
[1739430782576,0.015,2684.3,2684.0,6.57140551]
[1739430782761,3.72574,2684.1,2683.7,3.57140551]
[1739430782969,0.565,2683.9,2683.7,3.57140551]
[1739430783169,0.565,2683.9,2683.7,7.29758551]
[1739430783364,0.0552039,2683.8,2683.7,10.29758551]
[1739430784135,0.0552039,2683.8,2683.7,11.10598551]
[1739430784483,0.55,2684.0,2683.9,3.72592]
[1739430785237,0.565,2684.0,2683.9,3.72592]
[1739430788293,0.565,2684.0,2683.9,6.72592]
[1739430790117,0.288,2684.5,2684.3,3.72536]
[1739430790277,0.853,2684.5,2684.4,3.72522]
[1739430790476,0.853,2684.5,2684.4,7.29662551]
[1739430790692,1.54242,2684.5,2684.4,7.29662551]
[1739430790983,2.27157812,2684.5,2684.4,7.29662551]
[1739430792791,0.015,2684.5,2684.4,7.29662551]
[1739430793172,0.05202644,2684.5,2684.4,7.29662551]
[1739430793375,0.015,2684.5,2684.4,7.29662551]
[1739430793616,0.05219994,2684.5,2684.4,7.29662551]
[1739430793771,0.015,2684.5,2684.4,10.29662551]
[1739430794600,0.05222956,2684.5,2684.4,10.29662551]
[1739430796897,0.05222956,2684.5,2684.4,6.57140551]
[1739430797832,1.43302956,2684.5,2684.4,3.57140551]
[1739430797999,2.00754902,2684.5,2684.4,3.57140551]
[1739430798849,1.43302956,2684.5,2684.4,3.57140551]
[1739430799310,1.43302956,2684.5,2684.4,7.29662551]
[1739430800308,0.60222956,2684.5,2684.4,7.29662551]
[1739430803337,0.60222956,2684.5,2684.4,3.57140551]
[1739430804195,0.015,2684.3,2684.1,3.57140551]
[1739430804392,1.05423096,2684.3,2684.2,3.0]
[1739430804543,0.565,2684.3,2684.2,3.0]
[1739430804743,0.565,2684.3,2684.1,3.57140551]
[1739430804954,0.015,2684.1,2683.8,3.57140551]
[1739430805171,0.015,2684.1,2683.8,10.29744551]
[1739430805374,0.565,2683.9,2683.8,6.57140551]
[1739430805575,0.565,2683.9,2683.8,3.57140551]
[1739430806383,0.015,2683.9,2683.8,3.57140551]
[1739430807191,0.015,2683.9,2683.8,7.29746551]
[1739430808087,0.015,2683.9,2683.8,3.57140551]
[1739430808466,0.015,2683.9,2683.8,7.29746551]
[1739430808663,0.015,2684.0,2683.8,3.57140551]
[1739430808880,0.55,2683.9,2683.8,3.57140551]
[1739430809251,0.58582539,2683.9,2683.8,7.29746551]
[1739430810193,0.58582539,2683.9,2683.8,3.57140551]
[1739430811196,0.58582539,2683.9,2683.8,7.29746551]
[1739430812190,0.58582539,2683.9,2683.8,3.57140551]
[1739430812702,0.03582539,2683.9,2683.8,7.29746551]
[1739430813210,0.05082539,2683.9,2683.8,7.29746551]
[1739430814093,0.015,2683.9,2683.8,7.29746551]
[1739430815687,6.0533,2684.6,2683.9,0.78]
[1739430815891,0.288,2684.4,2684.2,3.57140551]
[1739430816769,0.565,2684.3,2684.2,3.57140551]
[1739430817623,0.565,2684.3,2684.2,7.29690551]
[1739430817828,0.565,2684.4,2684.3,3.72536]
[1739430823045,0.015,2684.4,2684.3,3.72536]
[1739430823507,0.015,2684.4,2684.3,4.53886]
[1739430825008,0.7549,2685.0,2684.3,3.8135]
[1739430825350,0.288,2685.2,2685.1,3.72425]
[1739430825520,0.8056,2685.4,2685.3,3.72397]
[1739430825847,0.0074474,2685.5,2685.3,7.29537551]
[1739430825848,0.2954474,2685.5,2685.3,7.29537551]
[1739430826050,0.565,2685.4,2685.3,7.29537551]
[1739430826379,0.015,2685.4,2685.3,3.57140551]
[1739430826864,0.565,2685.4,2685.3,3.57140551]
[1739430828262,3.72402,2685.3,2685.0,3.57140551]
[1739430828436,1.378315,2685.2,2685.0,3.57140551]
[1739430828634,1.0602335,2685.1,2685.0,3.57140551]
[1739430828839,0.55,2685.1,2685.0,3.57140551]
[1739430830181,0.565,2685.1,2685.0,3.57140551]
[1739430831135,0.565,2685.0,2684.7,3.57140551]
[1739430831341,0.565,2684.8,2684.7,3.57140551]
[1739430831749,0.015,2684.8,2684.7,7.29621551]
[1739430832609,3.72386,2685.4,2684.7,7.29621551]
[1739430832610,0.68376714,2685.5,2684.8,3.72467]
[1739430832878,0.68376714,2685.5,2684.7,7.32540551]
[1739430832879,0.340215,2685.4,2685.3,3.57140551]
[1739430833455,0.015,2685.3,2685.0,3.57140551]
[1739430833782,0.565,2685.3,2685.0,3.57140551]
[1739430833953,0.5575,2685.1,2685.0,3.57140551]
[1739430834942,0.0075,2685.1,2685.0,3.57140551]
[1739430836773,1.368915,2685.1,2685.0,3.57140551]
[1739430836980,0.594715,2685.1,2685.0,3.57140551]
[1739430837191,0.5575,2685.1,2685.0,3.57140551]
[1739430838786,1.0737795,2685.1,2685.0,3.57140551]
[1739430839154,0.5575,2685.0,2684.7,3.57140551]
[1739430839369,0.5575,2684.8,2684.7,3.57140551]
[1739430840085,0.5575,2684.8,2684.7,7.29621551]
[1739430840453,0.565,2685.0,2684.8,3.72463]
[1739430840654,0.015,2685.0,2684.9,3.72453]
[1739430841062,0.288,2685.4,2685.1,3.72419]
[1739430841266,0.288,2685.4,2685.3,3.57140551]
[1739430841571,0.015,2685.4,2685.3,3.57140551]
[1739430841773,0.565,2685.4,2685.3,3.57140551]
[1739430843513,0.73784513,2685.5,2685.3,4.34010551]
[1739430843816,1.30284513,2685.5,2685.4,3.72384]
[1739430844114,0.015,2685.4,2685.3,3.57140551]
[1739430846111,4.79946224,2685.4,2685.3,3.57140551]
[1739430846273,0.015,2685.2,2685.0,3.57140551]
[1739430846600,0.55,2685.1,2685.0,6.57140551]
[1739430847099,0.55,2685.1,2685.0,3.57140551]
[1739430847267,1.3085,2685.1,2685.0,3.57140551]
[1739430847853,1.3235,2685.1,2685.0,3.57140551]
[1739430848980,0.015,2685.1,2685.0,7.29579551]
[1739430849153,0.015,2685.1,2685.0,3.57140551]
[1739430850318,0.015,2685.1,2685.0,7.29579551]
[1739430850480,0.015,2685.1,2685.0,3.57140551]
[1739430851414,0.565,2685.1,2685.0,3.57140551]
[1739430851622,0.015,2685.0,2684.7,3.57140551]
[1739430851757,1.315,2684.9,2684.7,3.57140551]
[1739430851955,1.1113885,2684.8,2684.7,3.57140551]
[1739430852194,0.565,2684.8,2684.7,3.57140551]
[1739430853463,4.326885,2684.8,2684.7,3.57140551]
[1739430853686,0.565,2684.8,2684.7,3.57140551]
[1739430856846,0.015,2684.8,2684.7,11.11951551]
[1739430857141,0.015,2684.8,2684.7,6.57140551]
[1739430857361,0.7767,2684.8,2684.7,3.57140551]
[1739430857544,1.3267,2684.8,2684.7,3.57140551]
[1739430858380,0.565,2684.8,2684.7,3.57140551]
[1739430862141,4.28967,2684.8,2684.7,3.57140551]
[1739430862459,0.565,2684.7,2684.4,3.57140551]
[1739430862666,4.29008,2684.5,2684.4,3.57140551]
[1739430862868,4.29008,2684.5,2684.1,3.57140551]
[1739430862869,0.565,2684.3,2684.1,3.57140551]
[1739430863046,0.565,2684.3,2683.8,0.8086]
[1739430863047,0.565,2684.1,2683.8,4.38000551]
[1739430863359,0.015,2684.1,2684.0,3.72578]
[1739430863854,0.015,2684.2,2684.0,3.72578]
[1739430864116,0.015,2684.2,2684.1,7.29704551]
[1739430865881,0.015,2684.2,2684.1,3.57140551]
[1739430866083,0.015,2684.2,2684.1,7.29704551]
[1739430866885,0.015,2684.2,2684.1,3.57140551]
[1739430867448,0.015,2684.2,2683.8,3.72596]
[1739430867449,0.015,2684.0,2683.8,7.29745551]
[1739430867664,0.55,2683.9,2683.8,3.57140551]
[1739430868277,0.55,2683.9,2683.8,7.29746551]
[1739430868804,0.55,2683.9,2683.8,3.57140551]
[1739430871113,0.55,2683.9,2683.8,7.29746551]
[1739430871711,0.565,2683.9,2683.8,3.57140551]
[1739430872090,1.0172295,2683.9,2683.8,3.57140551]
[1739430873099,0.015,2683.8,2683.6,0.2504]
[1739430873301,0.565,2683.7,2683.6,0.2504]
[1739430873594,0.602215,2683.7,2683.6,0.2504]
[1739430873785,1.4857775,2683.7,2683.6,0.2504]
[1739430874554,5.2119675,2683.7,2683.6,0.2504]
[1739430874999,5.1747525,2683.7,2683.6,0.2504]
[1739430875169,5.9888525,2683.7,2683.6,0.2504]
[1739430876677,0.052215,2683.7,2683.6,0.2504]
[1739430876856,0.015,2683.7,2683.6,0.2504]
[1739430877197,0.565,2683.7,2683.6,0.2504]
[1739430877400,0.602215,2683.7,2683.6,0.2504]
[1739430877562,4.328405,2683.7,2683.6,0.2504]
[1739430877762,5.1726655,2683.7,2683.6,0.2504]
[1739430878879,1.4464755,2683.7,2683.6,0.2504]
[1739430879279,5.1726655,2683.7,2683.6,0.2504]
[1739430879692,1.4464755,2683.7,2683.6,0.2504]
[1739430880102,0.302,2683.7,2683.6,4.79103]
[1739430880279,0.015,2683.7,2683.6,4.79103]
[1739430880587,0.565,2683.7,2683.6,1.0647]
[1739430881107,0.565,2683.7,2683.6,4.79103]
[1739430881318,0.015,2683.7,2683.6,4.79103]
[1739430881483,0.287,2684.0,2683.9,3.72584]
[1739430881810,0.287,2684.0,2683.9,7.29724551]
[1739430882017,0.76162801,2684.3,2684.0,0.765]
[1739430882306,3.72476,2684.8,2684.0,0.765]
[1739430882307,0.7816,2684.9,2684.6,3.72483]
[1739430882609,1.03029887,2684.8,2684.7,3.72481]
[1739430883200,0.015,2684.7,2684.6,7.29623551]
[1739430883709,1.428315,2684.7,2684.3,3.57140551]
[1739430883879,0.565,2684.5,2684.3,3.57140551]
[1739430884294,0.565,2684.5,2684.0,3.57140551]
[1739430884499,0.565,2684.4,2684.1,3.72563]
[1739430885314,0.015,2684.4,2684.1,3.72563]
[1739430886412,0.015,2684.4,2684.2,3.72547]
[1739430886708,0.015,2684.4,2684.1,3.72563]
[1739430886912,0.0075,2684.2,2684.1,3.72563]
[1739430887615,0.0075,2684.3,2684.0,3.57140551]
[1739430887782,0.565,2684.1,2684.0,3.57140551]
[1739430887975,1.069197,2684.1,2683.8,3.72605]
[1739430888287,0.5575,2683.9,2683.8,3.72605]
[1739430888488,0.0075,2683.9,2683.8,3.72605]
[1739430889116,0.5575,2684.0,2683.8,3.72595]
[1739430889373,0.5575,2684.0,2683.8,7.4519]
[1739430889679,0.565,2684.0,2683.9,3.72592]
[1739430890409,0.015,2684.0,2683.9,3.72592]
[1739430891617,0.0075,2684.0,2683.9,3.72592]
[1739430892421,0.565,2684.0,2683.7,3.57140551]
[1739430892589,0.5575,2683.8,2683.7,3.57140551]
[1739430892791,0.0075,2683.8,2683.7,3.57140551]
[1739430893005,0.015,2684.1,2683.8,3.72604]
[1739430893330,0.015,2684.1,2683.9,3.72591]
[1739430893702,0.015,2684.1,2683.8,3.72604]
[1739430893928,6.05086348,2684.3,2684.0,3.57140551]
[1739430894098,0.287,2684.1,2684.0,7.29718551]
[1739430894429,0.852,2684.1,2684.0,7.29718551]
[1739430894731,0.852,2684.1,2684.0,3.57140551]
[1739430897006,0.565,2684.0,2683.7,7.29751551]
[1739430897322,1.1201915,2684.0,2683.7,7.29751551]
[1739430897484,1.0829765,2684.0,2683.7,7.29751551]
[1739430897885,0.015,2684.0,2683.7,7.29751551]
[1739430899231,0.015,2684.0,2683.9,3.72592]
[1739430899388,0.015,2684.0,2683.9,4.53542]
[1739430900252,5.29,2684.3,2684.2,3.7255]
[1739430900532,0.287,2684.6,2684.5,4.53458]
[1739430900738,0.287,2684.6,2684.5,8.10598551]
[1739430901086,0.302,2684.6,2684.5,4.38090551]
[1739430901286,0.302,2684.6,2684.5,3.57140551]
[1739430901693,0.852,2684.6,2684.5,7.29648551]
[1739430902194,0.302,2684.6,2684.5,7.29648551]
[1739430904146,0.302,2684.6,2684.5,3.57140551]
[1739430904290,0.302,2684.6,2684.2,3.57140551]
[1739430904291,0.015,2684.5,2684.2,3.57140551]
[1739430904490,0.015,2684.3,2684.2,3.57140551]
[1739430905036,0.015,2684.3,2683.9,3.57140551]
[1739430905345,0.015,2683.9,2683.6,3.82180551]
[1739430905572,0.565,2683.9,2683.6,3.82180551]
[1739430905864,0.565,2683.9,2683.6,7.54809551]
[1739430906237,0.565,2683.9,2683.6,3.82180551]
[1739430906840,0.55,2683.7,2683.6,3.82180551]
[1739430907042,0.55,2683.8,2683.6,3.82180551]
[1739430907952,4.27606,2683.8,2683.6,3.82180551]
[1739430908296,0.015,2683.7,2683.6,3.82180551]
[1739430908432,4.29119,2683.7,2683.6,0.2504]
[1739430911152,5.115205,2683.7,2683.6,0.2504]
[1739430913362,8.115205,2683.7,2683.6,0.2504]
[1739430913561,0.015,2682.6,2682.4,3.57140551]
[1739430913794,0.565,2682.4,2682.1,3.57640551]
[1739430914094,0.55,2682.2,2682.1,3.57640551]
[1739430914293,0.55,2682.3,2682.1,3.57640551]
[1739430914503,0.015,2682.2,2682.1,3.57640551]
[1739430914801,1.0282245,2682.2,2682.1,0.005]
[1739430915096,0.565,2682.2,2682.1,3.57640551]
[1739430915234,0.852,2682.2,2682.1,7.30482551]
[1739430915592,0.852,2682.2,2682.1,3.57640551]
[1739430918901,0.852,2682.2,2682.1,7.30482551]
[1739430919062,0.015,2682.2,2682.1,8.08512551]
[1739430919759,0.015,2682.2,2682.1,4.35670551]
[1739430919963,1.1792,2682.2,2682.1,3.57640551]
[1739430920345,1.1792,2682.2,2682.1,0.005]
[1739430921084,4.90748,2682.2,2682.1,0.005]
[1739430921460,1.216415,2682.2,2682.1,0.005]
[1739430921887,1.1792,2682.2,2682.1,0.005]
[1739430923482,4.90748,2682.2,2682.1,0.005]
[1739430924673,4.944695,2682.2,2682.1,0.005]
[1739430925364,4.90748,2682.2,2682.1,0.005]
[1739430925885,1.1792,2682.2,2682.1,0.005]
[1739430926063,4.90748,2682.2,2682.1,0.005]
[1739430926976,1.1792,2682.2,2682.1,0.005]
[1739430927153,6.4692,2682.2,2682.1,0.005]
[1739430927493,10.19748,2682.2,2682.1,0.005]
[1739430934286,6.4692,2682.2,2682.1,0.005]
[1739430934491,10.19748,2682.2,2682.1,0.005]
[1739430935454,0.565,2681.7,2681.5,3.57140551]
[1739430935651,0.986893,2681.6,2681.5,3.57140551]
[1739430936019,0.565,2681.5,2681.2,4.38460551]
[1739430936315,0.565,2681.5,2681.4,3.72939]
[1739430936478,0.565,2681.5,2681.3,3.72952]
[1739430936479,0.0075,2681.5,2681.3,3.72952]
[1739430936960,0.0075,2681.5,2681.4,3.72939]
[1739430937295,0.0075,2681.5,2681.3,3.72952]
[1739430939125,0.5575,2681.6,2681.5,4.53445]
[1739430939256,0.6142,2682.2,2681.8,3.72873]
[1739430939257,0.287,2682.0,2681.8,3.72873]
[1739430939825,0.565,2681.9,2681.8,3.72873]
[1739430939989,5.29,2682.2,2682.1,3.72842]
[1739430940187,5.29,2682.7,2682.6,3.72772]
[1739430940428,6.191,2682.9,2682.8,3.72744]
[1739430940573,6.191,2682.9,2682.6,8.09292551]
[1739430940764,0.565,2682.8,2682.6,4.36520551]
[1739430940964,4.29247,2682.8,2682.6,3.57140551]
[1739430941222,0.015,2682.6,2682.4,0.7941]